Cogmind - Beta 16.1 @@@ ROGUE MODE // 2026.04.30 @ 23:13:13 Player: shockman27 Result: Destroyed by D-53 Grenadier with Mini Grenade Launcher Performance ------------- Evolutions (0) 0 Regions Visited (4) 800 Robots Destroyed (48) 240 Value Destroyed (922) 922 Prototype IDs (2) 40 Alien Tech Used (0) 0 Bonus (-141) -141 TOTAL SCORE: 1861 Bonus ------- Friendly Fire -141 Cogmind --------- Core Integrity 0/250 Matter 289/300 Energy 265/265 System Corruption 0% Temperature Cool (36) Movement Treading (240) Ox1 Location -9/Mines Parts ------- > --- POWER (1) -------- Improved Ion Engine > --- PROPULSION (2) --- Light Treads Light Treads > --- UTILITY (2) ------ High-capacity Storage Unit Hardened Light Armor Plating > --- WEAPON (2) ------- Beam Rifle Heavy Assault Rifle > --- INVENTORY (20) --- Improved Ion Engine Light Treads Light Treads Light Treads Wheel Large Storage Unit Huge Storage Unit High-capacity Matter Pod (200) Seismic Detector Improved Targeting Computer Decoy Drone Bay Heavy EM Pulse Gun Medium Laser Beam Cannon Light Assault Rifle Light Assault Rifle Rocket Launcher Katana Signal Generator Peak State ------------ > --- POWER ------------ Improved Ion Engine > --- PROPULSION ------- Light Treads Light Treads > --- UTILITY ---------- High-capacity Storage Unit Hardened Light Armor Plating > --- WEAPON ----------- Beam Rifle Heavy Assault Rifle > --- INVENTORY -------- Improved Ion Engine Light Treads Light Treads Light Treads Wheel Large Storage Unit Huge Storage Unit High-capacity Matter Pod Seismic Detector Improved Targeting Computer Decoy Drone Bay Heavy EM Pulse Gun Medium Laser Beam Cannon Light Assault Rifle Light Assault Rifle Rocket Launcher Katana Signal Generator [Rating: 15] Favorites ----------- Power Ion Engine Engine Ion Engine Propulsion Light Treads Treads Light Treads Utility Large Storage Unit Device Seismic Detector Storage Large Storage Unit Protection Light Armor Plating Weapon Light Assault Rifle Energy Gun Beam Rifle Energy Cannon Beam Cannon Ballistic Gun Light Assault Rifle Launcher Rocket Launcher Special Weapon Mining Laser Build | -11 -10 -10 -10 -9 ------- Run | Yrd Mat Min Exi Min Slots Evolved . | . . . . . Power . | . . . . . Propulsion . | . . . . . Utility . | . . . . . Weapon . | . . . . . Parts Attached 28 | 7 9 3 . 9 Power 5 | 1 2 . . 2 Engine 5 | 1 2 . . 2 Core . | . . . . . Reactor . | . . . . . Propulsion 5 | 2 . . . 3 Treads 5 | 2 . . . 3 Leg . | . . . . . Wheel . | . . . . . Hover . | . . . . . Flight . | . . . . . Utility 8 | 2 4 . . 2 Device 2 | 1 1 . . . Storage 4 | 1 2 . . 1 Processor . | . . . . . Hackware . | . . . . . Protection 2 | . 1 . . 1 Artifact . | . . . . . Weapon 10 | 2 3 3 . 2 Energy Gun 2 | . 1 . . 1 Energy Cannon 2 | . 1 1 . . Ballistic Gun 3 | 2 . . . 1 Ballistic Cannon . | . . . . . Launcher 2 | . . 2 . . Special Weapon 1 | . 1 . . . Impact Weapon . | . . . . . Slashing Weapon . | . . . . . Piercing Weapon . | . . . . . Special Melee Weapon . | . . . . . Unidentified Prototypes . | . . . . . Parts Lost 3 | . . . . 3 Power . | . . . . . Propulsion 2 | . . . . 2 Utility 1 | . . . . 1 Weapon . | . . . . . Highest Loss Streak 2 | . . . . 2 To Critical Strikes . | . . . . . Average Backups 13 | 3 10 14 15 16 Power 1 | . 1 2 2 1 Propulsion 3 | 1 3 4 4 3 Utility 3 | . 2 4 4 5 Weapon 4 | 1 2 4 5 6 Tool/Special . | . . . . . Unused Backups 13 | . 1 . . 12 Power 3 | . 1 . . 2 Propulsion 4 | . . . . 4 Utility 4 | . . . . 4 Weapon 2 | . . . . 2 Tool/Special . | . . . . . Average Slot Usage (%) 99 | . 99 100 100 98 Engine 14 | . 14 14 14 14 Treads 27 | . 27 28 28 27 Device 4 | . 13 . . 1 Storage 14 | . 14 14 14 14 Protection 9 | . . 14 14 11 Energy Gun 2 | . 4 . . 7 Energy Cannon 10 | . 4 14 14 10 Ballistic Gun 13 | . 15 12 14 9 Special Weapon 1 | . 4 . . . Peak Build Rating 15 | 7 8 9 8 15 Average Rating 8 | 5 7 8 8 12 On Entrance 6 | . 7 8 8 8 Avg Prop Armor Cover (%) . | . . . . . Naked Turns . | . . . . . Heaviest Build 59 | 11 30 35 32 59 Greatest Support 40 | 40 40 40 40 40 Greatest Overweight (x) 1 | . . . . 1 Average Overweight (x) . | . . . . . Largest Inventory Capacity 20 | 8 15 15 15 20 Average Capacity 14 | 7 13 15 15 18 Most Carried 20 | 5 14 15 15 20 Average Carried 13 | 3 10 14 15 17 Final Capacity 20 | 8 15 15 15 20 Final Carried 20 | 5 14 15 15 20 Class Distribution -------------------- 87% | Mutant 12% | Scavenger-Mutant Dominant Class ---------------- Mutant | -10/Materials Mutant | -10/Mines Mutant | -10/Exiles Scavenger-Mutant | -9/Mines Resources | -11 -10 -10 -10 -9 ----------- Run | Yrd Mat Min Exi Min Matter Collected 1193 | 278 328 261 . 326 Remotely . | . . . . . Salvage Created 1313 | 36 450 338 . 489 Parts 86 | 5 29 27 . 25 Haulers Intercepted 2 | . 2 . . . Recyclers Shooed 4 | 1 1 2 . . Parts Field Recycled . | . . . . . Retrieved Matter . | . . . . . Parts Self-Destructed . | . . . . . Prevented . | . . . . . Parts Restored . | . . . . . Kills | -11 -10 -10 -10 -9 ------- Run | Yrd Mat Min Exi Min Combat Hostiles Destroyed 40 | . 10 11 . 19 Guns 15 | . 9 . . 6 Cannons 8 | . 1 2 . 5 AOE 16 | . . 9 . 7 Classes Destroyed 10 | 1 4 1 . 4 Worker 2 | . . 2 . . Tunneler 4 | 2 . 2 . . Hauler 2 | . 2 . . . Recycler 3 | . 1 2 . . Mechanic 1 | . . . . 1 Swarmer 20 | . 6 9 . 5 Grunt 12 | . 4 2 . 6 Duelist 1 | . . . . 1 Sentry 2 | . . . . 2 Assembled 5 | . . . . 5 Thug 1 | . . . . 1 Best Kill Streak 8 | 1 3 7 . 8 Combat Bots Only 7 | . 3 6 . 7 Max Kills in Single Turn 3 | 1 2 3 . 3 Gunslinging 1 | . 1 . . . Exploded 3 | . . 3 . 3 Melee . | . . . . . Uniques/NPCs Destroyed . | . . . . . Combat | -11 -10 -10 -10 -9 -------- Run | Yrd Mat Min Exi Min Hostile Shots Fired 166 | . 62 24 . 80 Missed 47 | . 24 5 . 18 Hits 119 | . 38 19 . 62 Melee 3 | . . . . 3 Projectile 116 | . 38 19 . 59 AOE 4 | . . . . 4 Damage Taken 1552 | . 349 214 . 989 Core 274 | . 54 18 . 202 Absorbed by Shields . | . . . . . Regen/Repaired (Parts) 125 | . 125 . . . Core Remaining (%) 100 | 100 . . . . Volleys Fired 124 | 9 52 22 . 41 Largest 2 | 2 2 2 . 2 Hottest 120 | 40 100 80 . 120 Shots Fired 219 | 18 98 30 . 73 Gun 150 | 18 90 8 . 34 Cannon 48 | . 2 16 . 30 Launcher 15 | . . 6 . 9 Special 6 | . 6 . . . Kinetic 116 | 18 71 8 . 19 Thermal 88 | . 27 16 . 45 Explosive 15 | . . 6 . 9 Electromagnetic . | . . . . . Robot Hit Streak 9 | 3 8 7 . 9 Robot Miss Streak 4 | 2 4 1 . 4 Penetration Max . | . . . . . Secondary Targets 1 | . 1 . . . Max Gunslinging Chain 1 | . 1 . . . Shots Hit Robots 129 | 11 60 17 . 41 Core Hits 81 | 4 23 20 . 34 Critical Kills . | . . . . . Critical Parts Destroyed . | . . . . . Critical Strikes 5 | . 3 . . 2 Burn 5 | . 3 . . 2 Melee Attacks . | . . . . . Impact . | . . . . . Slashing . | . . . . . Piercing . | . . . . . Sneak Attacks . | . . . . . Combat Hostiles . | . . . . . Follow-up Attacks . | . . . . . Damage Inflicted 2956 | 90 593 825 . 1448 Guns 976 | 90 554 32 . 300 Cannons 638 | . 35 246 . 357 Explosions 1338 | . . 547 . 791 Melee . | . . . . . Ramming 4 | . 4 . . . Kinetic 661 | 90 399 32 . 140 Thermal 1008 | . 190 301 . 517 Explosive 1283 | . . 492 . 791 Electromagnetic . | . . . . . Impact . | . . . . . Slashing . | . . . . . Piercing . | . . . . . Highest Corruption . | . . . . . Average Corruption . | . . . . . Corruption Purged . | . . . . . Corruption Blocked . | . . . . . Overload Shots . | . . . . . Overflow Damage 55 | . . 40 . 15 Projectiles . | . . . . . Explosions 55 | . . 40 . 15 Melee . | . . . . . Knockbacks . | . . . . . Impact . | . . . . . Kinetic . | . . . . . Secondary . | . . . . . Self-Inflicted Damage 5 | . . . . 5 Shots 1 | . . . . 1 Rammed 1 | . 1 . . . Targets Rammed 1 | . 1 . . . Kicked . | . . . . . Crushed . | . . . . . Highest Temperature 428 | . 148 289 . 428 Average Temperature 115 | . 33 98 . 163 Received Heat Transfer 404 | . 45 90 . 269 Effects 4 | . . . . 4 Shutdowns 2 | . . . . 2 Energy Bleed 1 | . . . . 1 Matter Decay 1 | . . . . 1 Siege Activations . | . . . . . Martial Activations . | . . . . . Shielding Activations . | . . . . . Robots Disrupted . | . . . . . Combat Hostiles . | . . . . . Robots Corrupted . | . . . . . Combat Hostiles . | . . . . . Parts Fried . | . . . . . Impact Corruptions . | . . . . . Robots Melted 1 | . . . . 1 Combat Hostiles 1 | . . . . 1 Parts Melted 5 | . . 2 . 3 Heat Transferred 2603 | . 740 568 . 1295 Parts Sabotaged . | . . . . . Parts Stolen . | . . . . . Parts Stripped . | . . . . . Power Chain Reactions . | . . . . . Alert | -11 -10 -10 -10 -9 ------- Run | Yrd Mat Min Exi Min Maximum Alert Level 1 | . . . . 1 Low Security (%) 99 | 100 100 100 . 98 Level 1 . | . . . . 1 Level 2 . | . . . . . Level 3 . | . . . . . Level 4 . | . . . . . Level 5 . | . . . . . High Security . | . . . . . Max Security . | . . . . . Peak Influence 206 | 5 77 176 . 206 Initial 15 | . . 15 . . Average 50 | . 25 58 . 90 Influence Increases 1194 | 10 384 360 . 440 Destroy 0b10 Robot/C 700 | . 200 220 . 280 Destroy 0b10 Robot/NC 60 | 10 15 30 . 5 Destroy Leader 134 | . 54 40 . 40 Successful Hack 34 | . 34 . . . Select Force Hacks 60 | . 60 . . . Disable Machine 90 | . . 30 . 60 Destroy Structure 86 | . 6 40 . 40 Lose Combat Pursuer 30 | . 15 . . 15 Influence Decreases 1126 | 10 343 401 . 372 Entered New Map 26 | . . 26 . . Time Decay 1070 | 10 343 375 . 342 Lost Part 30 | . . . . 30 Squads Dispatched 4 | . 3 . . 1 Investigation 2 | . 2 . . . Extermination . | . . . . . Reinforcement 1 | . 1 . . . Assault 1 | . . . . 1 Garrison . | . . . . . Intercept . | . . . . . Searches Triggered . | . . . . . Construction Impeded . | . . . . . Haulers Reinforced . | . . . . . Active Scanning Responses . | . . . . . Cargo Convoy Interrupts . | . . . . . Stealth | -11 -10 -10 -10 -9 --------- Run | Yrd Mat Min Exi Min Distress Signals . | . . . . . Communications Jammed . | . . . . . Distress Signals . | . . . . . Times Spotted 50 | . 19 8 . 23 Peak Tracking Total 5 | . 4 3 . 5 Tactical Retreats 2 | . 1 . . 1 Traps | -11 -10 -10 -10 -9 ------- Run | Yrd Mat Min Exi Min Traps Triggered 1 | . 1 . . . Indirectly . | . . . . . Trap Hack Attempts . | . . . . . Triggered . | . . . . . Disarmed . | . . . . . Reprogrammed . | . . . . . Reused . | . . . . . Traps Extracted . | . . . . . Installed . | . . . . . Triggered . | . . . . . Machines | -11 -10 -10 -10 -9 ---------- Run | Yrd Mat Min Exi Min Machines Disabled 7 | . . 2 . 5 Max in Single Turn 2 | . . 1 . 2 Machines Repaired . | . . . . . Machines Dismantled . | . . . . . Machines Sabotaged . | . . . . . Overloaded Fab Kills . | . . . . . Hacking | -11 -10 -10 -10 -9 --------- Run | Yrd Mat Min Exi Min Machines Accessed 14 | . 9 . 4 1 Terminals 6 | . 6 . . . Fabricators . | . . . . . Repair Stations 1 | . 1 . . . Recycling Units 2 | . 2 . . . Scanalyzers . | . . . . . Garrison Access . | . . . . . Total Hacks 28 | . 23 . 4 1 Successful 18 | . 13 . 4 1 Failed 9 | . 9 . . . Catastrophic . | . . . . . Database Lockouts 1 | . 1 . . . Manual 21 | . 18 . 3 . Terminals 17 | . 17 . . . Fabricators . | . . . . . Repair Stations 2 | . 2 . . . Recycling Units 4 | . 4 . . . Scanalyzers . | . . . . . Garrison Access . | . . . . . Terminal Hacks 12 | . 7 . 4 1 Record 4 | . . . 4 . Robot Analysis 3 | . 3 . . . Prototype ID Bank 1 | . 1 . . . Open Door 1 | . . . . 1 Locate Traps 2 | . 2 . . . Hauler Manifests 1 | . 1 . . . Fabricator Hacks . | . . . . . Repair Station Hacks 2 | . 2 . . . Scan Component 1 | . 1 . . . Repair 1 | . 1 . . . Recycling Unit Hacks . | . . . . . Scanalyzer . | . . . . . Garrison Access Hacks . | . . . . . Unauthorized Hacks 4 | . 4 . . . Terminals 2 | . 2 . . . Botnet 2 | . 2 . . . Fabricators . | . . . . . Repair Stations . | . . . . . Recycling Units 2 | . 2 . . . Tunnel 2 | . 2 . . . Scanalyzers . | . . . . . Garrison Access . | . . . . . Data Cores Recovered . | . . . . . Used . | . . . . . Hacking Detections 7 | . 7 . . . Full Trace Events . | . . . . . Feedback Events . | . . . . . Feedback Blocked . | . . . . . Robot Schematics Acquired . | . . . . . Robots Built . | . . . . . Authchips . | . . . . . Time . | . . . . . Total Robot Build Rating . | . . . . . Part Schematics Acquired . | . . . . . Parts Built . | . . . . . Authchips . | . . . . . Time . | . . . . . Total Part Build Rating . | . . . . . Part Studies Acquired . | . . . . . Parts Repaired 1 | . 1 . . . Time 26 | . 26 . . . Parts Recycled . | . . . . . Recycled Matter . | . . . . . Retrieved Matter . | . . . . . Retrieved Components . | . . . . . Parts Scanalyzed . | . . . . . Part Schematics Acquired . | . . . . . Parts Damaged . | . . . . . Bothacking | -11 -10 -10 -10 -9 ------------ Run | Yrd Mat Min Exi Min Used RIF Installer . | . . . . . Robots Hacked . | . . . . . Non-combat . | . . . . . Combat . | . . . . . Robot Hacks Applied . | . . . . . Relay Couplers Released . | . . . . . Fabnet Peak Effective % . | . . . . . Robots Rewired . | . . . . . Allies Hacked . | . . . . . Hacks Repelled . | . . . . . Allies | -11 -10 -10 -10 -9 -------- Run | Yrd Mat Min Exi Min Total Allies 1 | . . . . 1 Largest Group 1 | . . . . 1 Highest-Rated Group 31 | . . . . 31 Highest-Rated Ally 31 | . . . . 31 Total Orders . | . . . . . Ally Attacks 2 | . . . . 2 Total Damage 20 | . . . . 20 Kills . | . . . . . Allies Corrupted . | . . . . . Allies Melted 1 | . . . . 1 Intel | -11 -10 -10 -10 -9 ------- Run | Yrd Mat Min Exi Min Active Infowar (turns) 1438 | 10 1354 . . 74 Seismic 1438 | 10 1354 . . 74 Robot Analysis Total 3 | . 3 . . . Derelict Logs Recovered 2 | . . 1 . 1 Drone Launches . | . . . . . Drone Recoveries . | . . . . . Exploration | -11 -10 -10 -10 -9 ------------- Run | Yrd Mat Min Exi Min Turns Passed 4674 | 171 1372 1244 1058 829 Spaces Moved 2526 | 84 720 741 662 319 Core 2 | 2 . . . . Treads 2524 | 82 720 741 662 319 Legs . | . . . . . Wheels . | . . . . . Hover . | . . . . . Flight . | . . . . . Fastest Speed 50 | 50 160 160 160 160 Average Speed 166 | 157 160 160 160 211 Slowest Speed 240 | 160 160 160 160 240 Overloaded Moves . | . . . . . Propulsion Burnouts . | . . . . . Robots Hopped . | . . . . . Potential Cave-ins . | . . . . . Cave-ins Triggered . | . . . . . Exploration Rate (%) 72 | 4 98 98 93 70 Regions Visited 4 Branch Regions 3 Pre-discovered Areas 3 | . 2 1 . . Known Exits Taken . | . . . . . Unknown Exits Taken 4 | 1 1 1 1 . Scrap Searched 2 | . . 2 . . Spaces Dug 8 | . 5 . . 3 Terrain Destroyed 109 | . 6 45 . 58 Melee . | . . . . . Projectile 6 | . 6 . . . AOE 103 | . . 45 . 58 Terrain Rammed . | . . . . . Walls Destroyed . | . . . . . Machines Disabled . | . . . . . Actions | -11 -10 -10 -10 -9 --------- Run | Yrd Mat Min Exi Min Total 2772 | 105 838 770 661 398 Wait 40 | 1 32 . . 7 Move 2522 | 83 719 740 661 319 Hop . | . . . . . Pick Up 25 | 5 10 1 . 9 Fast Attach 11 | 7 2 . . 2 Attach 2 | . . . . 2 Detach 1 | . . . . 1 Swap 32 | . 16 6 . 10 Drop 14 | . 6 1 . 7 Fire 124 | 9 52 22 . 41 Melee . | . . . . . Ram . | . . . . . Kick . | . . . . . Crush 1 | . 1 . . . Escape Stasis . | . . . . . Rewire . | . . . . . Trap . | . . . . . Miscellaneous . | . . . . . Route ------- -11/Scrapyard -10/Materials (discovered 4 exits: [*Mat x3] / [*Min]) -10/Mines (discovered 3 exits: [*Mat x2] / *Exi) -10/Exiles (discovered 2 exits: *Min x2) -9/Mines (discovered 2 exits: *Mat x2) History --------- Turn | Location | Event 16 | -11/Scrapyard | Discovered new exit (range 15) 172 | -11/Scrapyard | Entered Materials 310 | -10/Materials | Build established: Mutant 625 | -10/Materials | Discovered new exit (range 13) 930 | -10/Materials | Discovered new exit (range 11) 1022 | -10/Materials | Discovered new exit (range 8) 1046 | -10/Materials | Central database locked down 1185 | -10/Materials | Discovered new exit (range 11) 1248 | -10/Materials | Repaired Lgt. Treads 1544 | -10/Materials | Entered Mines 1560 | -10/Mines | Met a Derelict bent on vengeance 1677 | -10/Mines | Learned Materials stockpile data 1781 | -10/Mines | Received a Rocket Launcher from a helpful Derelict 1814 | -10/Mines | Learned location of Storage (-8) 1839 | -10/Mines | Deemed a non-threat by the Exiles lab entrance 1840 | -10/Mines | Discovered new exit (range 5) 2133 | -10/Mines | Discovered new exit (range 9) 2337 | -10/Mines | Discovered new exit (range 4) 2595 | -10/Mines | Found a hidden stash of uninstalled traps 2788 | -10/Mines | Entered Exiles 2788 | -10/Exiles | Found Exiles lab abandoned 2813 | -10/Exiles | Discovered new exit (range 15) 3827 | -10/Exiles | Discovered new exit (range 14) 3846 | -10/Exiles | Entered Mines 3847 | -9/Mines | Met a Derelict testing a Signal Generator 3850 | -9/Mines | Found Signal Generator 3978 | -9/Mines | Destroyed 7 combat bots 4086 | -9/Mines | Core integrity fell below 50% 4181 | -9/Mines | Assembled infested the area 4186 | -9/Mines | Assisted by a Guerilla fighting off Assembled 4293 | -9/Mines | Found the Drone Emporium 4309 | -9/Mines | Found Prototype Device 4412 | -9/Mines | Build established: Scavenger-Mutant 4553 | -9/Mines | Discovered new exit (range 4) 4621 | -9/Mines | Identified exit to Materials 4672 | -9/Mines | Core integrity fell below 20% 4675 | -9/Mines | Destroyed by D-53 Grenadier with Mini Grenade Launcher Last Messages --------------- 04412_ Imp. Heat Sink melted. 04412_ K-01 Serf collects debris. 04420_ G-34 Mercenary suffers critical hit (Burn). 04422_ K-01 Serf collects debris. 04423_ Power failure, Imp. Ion Engine shutdown. 04426_ G-34 Mercenary destroyed. 04426_ K-01 Serf collects debris. 04429_ Overheating: Matter decay (-46). 04431_ Acquired 100 matter. 04436_ U-05 Engineer lays Concrete. 04439_ U-05 Engineer builds a Wall. 04440_ K-01 Serf collects debris. 04443_ U-05 Engineer lays Concrete. 04447_ K-01 Serf collects debris. 04465_ U-05 Engineer lays Concrete. 04553_ EXIT=FOUND 04621_ Acquired derelict log, extracted data. Loading 1 Mines exit... 04657_ S-10 Pest destroyed. 04671_ D-53 Grenadier destroyed. Map ----- +----------------------------------------------------+ | ###???# ##???????????????????????? | | ##??# ## #######?????????????????? | | #?## #?????????????????? | | ### #??????#####??????? | | ## ######## #?????## ###????? | | [ = * ########## #?????# ##???? | | # %###= ### #?????# ##??? | | * ## #?# #??????# #??? | | # # # #########??????## #??? | | ## ## # ## ##??????????????# #??? | | ### # # ## #?????????????## #??? | | # # ### #???????####??# < #??? | | ## # % ##?????## ##?# #??? | | ?=#?## #????## #?## #??? | | ??#??# ###### #??### #### ##?? | | ?????# #???## #?## #?? | | ?????# ????# ### ## #?? | | ????? ???## ## ########## #?? | | ?????##???# ##????????## #####?? | | ??????????# ##??????????# #?????? | | ?????????# #########????# #?????? | | ?????? ### ###??# #?????? | | ?? ## #### #?????? | | ?## ## #?????? | | ??# #### #####?????? | | ??## #??## @ #?????????? | | ???### #???# #?????????? | | ?????## ### #??# #?????????? | | ??????# ##??# ##### d #?????????? | | ?????? #????# u % [### ##?????????? | | ?????## #?????# #########??##??????????? | | ??????##??????# #??????????????????????? | | ?????????????? ???????????????????????? | | ??????????????? ???????????????????????? | | ??????????????? ???????????????????????? | | ????????????????????????????????????????? | | ????????????????????????????????????????? | | ????????????????????????????????????????? | | ????????????????????????????????????????? | | ????????????????????????????????????????? | | ????????????????????????????????????????? | | ????????????????????????????????????????? | | ????????????????????????????????????????? | | ????????????????????????????????????????? | | ????????????????????????????????????????? | | ????????????????????????????????????????? | | ????????????????????????????????????????? | | ????????????????????????????????????????? | | ????????????????????????????????????????? | | ????????????????????????????????????????? | +----------------------------------------------------+ Best States ------------- Heat Dissipation 25 Energy Generation 12 Energy Capacity 265 Matter Stores 300 Matter Capacity 300 Sight Range 16 Terrain Scan Density 10 Armor Coverage 150 Evasion (%) 40 Recoil Reduction 2 Item Schematics ----------------- None Robot Schematics ------------------ None Fabricated ------------ Nothing Repaired ---------- Lgt. Treads | 10% | -10/Materials Studied --------- None Alien Tech Used ----------------- None Achievements -------------- None Challenges ------------ None Game ------ Seed LightpackIntegrityChainsaw Manual? 0 Play Time 00:24:55 Cumulative 250.4 hours Start 2026.04.28 @ 00:02:55 End 2026.04.30 @ 23:13:13 Sessions 4 Manual Loads 0 Difficulty Rogue Special Mode None Game No. 123 Rogue 119 Adventurer 4 Explorer 0 Win Type - Total 6 Types 3/0/1/1/0/0/0/1/0/0 Lore% 76 Gallery% 65 Achievement% 51 Wizard Run 0 Options --------- Layout 0 ASCII 0 Keyboard 1 Movement Vi Keybinds 0 Fullscreen 1 Font 24/Crisp Map View 76x50 Zoom Use 0% Tactical HUD 1 Map Filters NONE Filters NONE Steam 1 RUN: d05e3be6-d7a7-4b0c-b04b-b8a5db0ffa61